[Event "ESP-ch Rapid 2018"]
[Site "Linares"]
[Date "2018.08.19"]
[Round "8"]
[White "Cuenca Jimenez, Jose Fernando"]
[Black "Roldan Marques, Daniel"]
[Result "1-0"]
[ECO "C11"]
[WhiteElo "2506"]
[BlackElo "2161"]
[Annotator "ChessBase"]
[PlyCount "71"]
[EventDate "2018.08.19"]
[EventType "team-tourn"]
[EventCountry "ESP"]
[SourceTitle "playchess.com"]
[Source "ChessBase"]
[SourceQuality "1"]
[TimeControl "900+5"]

1. e4 {[%emt 0:00:00]} e6 {[%emt 0:00:00]} 2. d4 {[%emt 0:00:00]} d5 {[%emt 0:00:00]} 3. Nc3 {[%emt 0:00:00]} Nf6 {[%emt 0:00:00]} 4. Bg5 {[%emt 0:00:03]} dxe4 {[%emt 0:00:06]} 5. Nxe4 {[%emt 0:00:02]} Be7 {[%emt 0:00:01]} 6. Bxf6 {[%emt 0:00:02]} gxf6 {[%emt 0:00:01]} 7. Nf3 {[%emt 0:00:06]} a6 {[%emt 0:00:02]} 8. g3 {[%emt 0:00:23]} b5 {[%emt 0:00:03]} 9. Bg2 {[%emt 0:00:23]} Bb7 {[%emt 0:00:02]} 10. Qe2 {[%emt 0:00:08]} Nd7 {[%emt 0:00:12]} 11. O-O {[%emt 0:00:21]} Bd5 {[%emt 0:00:02]} 12. b3 {[%emt 0:00:37]} b4 {[%emt 0:00:02]} 13. c4 {[%emt 0:00:15]} bxc3 {[%emt 0:00:03]} 14. Nxc3 {[%emt 0:00:02]} c6 {[%emt 0:00:09]} 15. Rac1 {[%emt 0:00:24]} O-O {[%emt 0:00:19]} 16. Qe3 {[%emt 0:00:41]} Re8 {[%emt 0:00:23]} 17. Rfe1 {[%emt 0:00:23]} Qa5 {[%emt 0:01:14]} 18. Na4 {[%emt 0:00:31]} Rac8 {[%emt 0:00:26]} 19. Nd2 {[%emt 0:00:39]} Bxg2 {[%emt 0:03:26]} 20. Kxg2 {[%emt 0:00:07]} f5 {[%emt 0:00:21]} 21. Nc4 {[%emt 0:00:16]} Qd5+ {[%emt 0:00:02]} 22. Kg1 {[%emt 0:00:02]} Rcd8 {[%emt 0:01:27]} 23. Nc3 {[%emt 0:00:23]} f4 {[%emt 0:00:04]} 24. Nxd5 {[%emt 0:00:51]} fxe3 {[%emt 0:00:02]} 25. Ndxe3 {[%emt 0:00:45]} Nb8 {[%emt 0:00:42]} 26. Red1 {[%emt 0:00:20]} Bf6 {[%emt 0:00:16]} 27. Ne5 {[%emt 0:00:06]} Rd6 {[%emt 0:00:24]} 28. N3c4 {[%emt 0:00:36]} Rd5 {[%emt 0:00:04]} 29. Nb6 {[%emt 0:00:12]} Rb5 {[%emt 0:01:54]} 30. Nbd7 {[%emt 0:00:13]} Nxd7 {[%emt 0:00:16]} 31. Nxd7 {[%emt 0:00:02]} Bg7 {[%emt 0:00:04]} 32. Rxc6 {[%emt 0:01:53]} Rd8 {[%emt 0:00:17]} 33. Nc5 {[%emt 0:00:03]} Bxd4 {[%emt 0:00:34]} 34. Kf1 {[%emt 0:00:01]} a5 {[%emt 0:00:51]} 35. Ne4 {[%emt 0:00:38]} Bb6 {[%emt 0:00:39]} 36. Rxd8+ {[%emt 0:00:10]} 1-0

[Event "ESP-ch Rapid 2018"]
[Site "Linares"]
[Date "2018.08.19"]
[Round "8"]
[White "Ladron De Guevara Pinto, Paolo"]
[Black "Cruz Lledo, Pablo"]
[Result "1-0"]
[ECO "B12"]
[WhiteElo "2424"]
[BlackElo "2432"]
[Annotator "NA"]
[PlyCount "93"]
[EventDate "2018.08.19"]
[EventType "team-tourn"]
[EventCountry "ESP"]
[SourceTitle "playchess.com"]
[Source "ChessBase"]
[SourceQuality "1"]
[TimeControl "900+5"]

1. e4 {[%emt 0:00:00]} c6 {[%emt 0:00:00]} 2. d4 {[%emt 0:00:00]} d5 {[%emt 0:00:00]} 3. e5 {[%emt 0:00:00]} Bf5 {[%emt 0:00:11]} 4. h4 {[%emt 0:00:00]} h6 {[%emt 0:00:02]} 5. g4 {[%emt 0:00:01]} Bd7 {[%emt 0:00:01]} 6. Be3 {[%emt 0:00:02]} e6 {[%emt 0:00:02]} 7. Bd3 {[%emt 0:00:34]} h5 {[%emt 0:00:01]} 8. g5 {[%emt 0:00:01]} g6 {[%emt 0:00:11]} 9. Ne2 {[%emt 0:00:37]} Ne7 {[%emt 0:00:11]} 10. Nd2 {[%emt 0:00:14]} Nf5 {[%emt 0:00:39]} 11. Bxf5 {[%emt 0:00:06]} exf5 {[%emt 0:00:02]} 12. Nf4 {[%emt 0:00:02]} Be6 {[%emt 0:00:28]} 13. O-O {[%emt 0:00:11]} Nd7 {[%emt 0:00:18]} 14. a4 {[%emt 0:00:45]} Be7 {[%emt 0:01:19]} 15. Re1 {[%emt 0:00:04]} Kf8 {[%emt 0:00:18]} 16. Nf1 {[%emt 0:00:22]} c5 {[%emt 0:00:54]} 17. dxc5 {[%emt 0:01:57]} Nxc5 {[%emt 0:00:01]} 18. f3 {[%emt 0:00:11]} Qd7 {[%emt 0:01:03]} 19. c3 {[%emt 0:00:27]} a5 {[%emt 0:00:07]} 20. Ng3 {[%emt 0:00:03]} Kg7 {[%emt 0:00:40]} 21. Nge2 {[%emt 0:00:12]} b5 {[%emt 0:00:21]} 22. Bxc5 {[%emt 0:00:53]} Bxc5+ {[%emt 0:00:03]} 23. Kg2 {[%emt 0:00:01]} Rhb8 {[%emt 0:00:26]} 24. axb5 {[%emt 0:00:56]} Qxb5 {[%emt 0:00:09]} 25. Nd3 {[%emt 0:00:43]} Bb6 {[%emt 0:00:48]} 26. Nd4 {[%emt 0:01:02]} Bxd4 {[%emt 0:00:12]} 27. cxd4 {[%emt 0:00:01]} a4 {[%emt 0:01:01]} 28. Re2 {[%emt 0:00:14]} Qc4 {[%emt 0:03:49]} 29. Nc5 {[%emt 0:00:24]} Rb4 {[%emt 0:00:22]} 30. Rd2 {[%emt 0:00:08]} Rab8 {[%emt 0:00:55]} 31. Rxa4 {[%emt 0:00:22]} Rxa4 {[%emt 0:00:30]} 32. Qxa4 {[%emt 0:00:02]} Qc1 {[%emt 0:00:30]} 33. Qc2 {[%emt 0:01:03]} Qe1 {[%emt 0:01:13]} 34. Nxe6+ {[%emt 0:00:05]} Kh7 {[%emt 0:00:21]} 35. Rf2 {[%emt 0:00:06]} Qb4 {[%emt 0:00:20]} 36. Nf4 {[%emt 0:00:27]} Qxd4 {[%emt 0:00:02]} 37. Qc7 {[%emt 0:00:08]} Qxf4 {[%emt 0:00:27]} 38. Qxb8 {[%emt 0:00:10]} Qxh4 {[%emt 0:00:02]} 39. e6 {[%emt 0:01:07]} Qxg5+ {[%emt 0:00:03]} 40. Qg3 {[%emt 0:00:01]} Qf6 {[%emt 0:00:03]} 41. exf7 {[%emt 0:00:03]} f4 {[%emt 0:00:08]} 42. f8=N+ {[%emt 0:00:10]} Qxf8 {[%emt 0:00:02]} 43. Qg5 {[%emt 0:00:02]} d4 {[%emt 0:00:13]} 44. Re2 {[%emt 0:00:06]} d3 {[%emt 0:00:06]} 45. Re7+ {[%emt 0:00:01]} Kh8 {[%emt 0:00:01]} 46. Qe5+ {[%emt 0:00:09]} Kg8 {[%emt 0:00:01]} 47. Re8 {[%emt 0:00:01]} 1-0

[Event "ESP-ch Rapid 2018"]
[Site "Linares"]
[Date "2018.08.19"]
[Round "8"]
[White "Tejedor Fuente, Enrique"]
[Black "Garcia Romero, Benjamin Abel"]
[Result "1/2-1/2"]
[ECO "C54"]
[WhiteElo "2408"]
[BlackElo "2230"]
[Annotator "NA"]
[PlyCount "119"]
[EventDate "2018.08.19"]
[EventType "team-tourn"]
[EventCountry "ESP"]
[SourceTitle "playchess.com"]
[Source "ChessBase"]
[SourceQuality "1"]
[TimeControl "900+5"]

1. e4 {[%emt 0:00:00]} e5 {[%emt 0:00:00]} 2. Nf3 {[%emt 0:00:00]} Nc6 {[%emt 0:00:00]} 3. d4 {[%emt 0:00:01]} exd4 {[%emt 0:00:01]} 4. Bc4 {[%emt 0:00:01]} Bc5 {[%emt 0:00:12]} 5. c3 {[%emt 0:00:02]} Nf6 {[%emt 0:00:04]} 6. cxd4 {[%emt 0:00:03]} Bb4+ {[%emt 0:00:01]} 7. Bd2 {[%emt 0:00:01]} Bxd2+ {[%emt 0:00:02]} 8. Nbxd2 {[%emt 0:00:01]} d5 {[%emt 0:00:02]} 9. exd5 {[%emt 0:00:01]} Nxd5 {[%emt 0:00:05]} 10. Qb3 {[%emt 0:00:02]} Be6 {[%emt 0:01:36]} 11. Qxb7 {[%emt 0:01:13]} Ndb4 {[%emt 0:00:26]} 12. Qb5 {[%emt 0:01:00]} Rb8 {[%emt 0:00:15]} 13. Qa4 {[%emt 0:01:26]} Bxc4 {[%emt 0:04:19]} 14. Nxc4 {[%emt 0:00:00]} O-O {[%emt 0:00:01]} 15. Rd1 {[%emt 0:00:23]} Qe8+ {[%emt 0:00:24]} 16. Ne3 {[%emt 0:00:49]} Nxd4 {[%emt 0:00:04]} 17. Qxe8 {[%emt 0:00:07]} Nxf3+ {[%emt 0:00:02]} 18. gxf3 {[%emt 0:00:01]} Rfxe8 {[%emt 0:00:02]} 19. O-O {[%emt 0:01:12]} Nxa2 {[%emt 0:00:38]} 20. Rd2 {[%emt 0:02:33]} Nb4 {[%emt 0:00:27]} 21. Rd7 {[%emt 0:00:14]} Rb6 {[%emt 0:01:10]} 22. Rxc7 {[%emt 0:01:11]} a5 {[%emt 0:00:01]} 23. Rd1 {[%emt 0:00:13]} h5 {[%emt 0:01:06]} 24. Rdd7 {[%emt 0:00:13]} Rg6+ {[%emt 0:00:10]} 25. Kf1 {[%emt 0:00:07]} Rf6 {[%emt 0:00:02]} 26. Ke2 {[%emt 0:00:14]} Na6 {[%emt 0:00:26]} 27. Rc2 {[%emt 0:01:20]} g6 {[%emt 0:00:21]} 28. Rcd2 {[%emt 0:00:48]} Rb6 {[%emt 0:00:41]} 29. Kf1 {[%emt 0:00:30]} Nc5 {[%emt 0:00:22]} 30. R7d5 {[%emt 0:00:07]} Nb3 {[%emt 0:00:11]} 31. Rc2 {[%emt 0:00:09]} Rb7 {[%emt 0:00:09]} 32. f4 {[%emt 0:00:07]} Rb4 {[%emt 0:00:55]} 33. f5 {[%emt 0:00:03]} Rf4 {[%emt 0:00:04]} 34. Rd3 {[%emt 0:00:44]} a4 {[%emt 0:01:07]} 35. fxg6 {[%emt 0:00:06]} fxg6 {[%emt 0:00:00]} 36. Kg2 {[%emt 0:00:07]} Ref8 {[%emt 0:00:10]} 37. Rd6 {[%emt 0:00:30]} Kg7 {[%emt 0:00:25]} 38. Nd5 {[%emt 0:01:15]} Rg4+ {[%emt 0:00:41]} 39. Kf1 {[%emt 0:00:00]} Rd4 {[%emt 0:00:12]} 40. Rcc6 {[%emt 0:00:49]} Nd2+ {[%emt 0:00:08]} 41. Ke2 {[%emt 0:00:15]} Re8+ {[%emt 0:00:05]} 42. Ne3 {[%emt 0:00:06]} Rxd6 {[%emt 0:00:03]} 43. Rxd6 {[%emt 0:00:00]} Nc4 {[%emt 0:00:09]} 44. Rd7+ {[%emt 0:00:01]} Kh6 {[%emt 0:00:01]} 45. Rb7 {[%emt 0:00:09]} Nxe3 {[%emt 0:00:13]} 46. fxe3 {[%emt 0:00:00]} Re4 {[%emt 0:00:00]} 47. Kf3 {[%emt 0:00:07]} Rh4 {[%emt 0:00:02]} 48. Kg3 {[%emt 0:00:06]} Rg4+ {[%emt 0:00:01]} 49. Kf2 {[%emt 0:00:09]} Rc4 {[%emt 0:00:12]} 50. h3 {[%emt 0:00:15]} Kg5 {[%emt 0:00:10]} 51. Kg3 {[%emt 0:00:02]} h4+ {[%emt 0:00:06]} 52. Kf3 {[%emt 0:00:01]} Kh6 53. Rd7 {[%emt 0:00:16]} Rc2 {[%emt 0:00:18]} 54. Rd4 {[%emt 0:00:01]} g5 {[%emt 0:00:08]} 55. Rxa4 {[%emt 0:00:13]} Rxb2 {[%emt 0:00:01]} 56. Kg4 {[%emt 0:00:09]} Rg2+ {[%emt 0:00:02]} 57. Kf5 {[%emt 0:00:03]} Rf2+ {[%emt 0:00:20]} 58. Kg4 {[%emt 0:00:06]} Rg2+ 59. Kf5 {[%emt 0:00:04]} Rf2+ {[%emt 0:00:26]} 60. Ke4 1/2-1/2

[Event "ESP-ch Rapid 2018"]
[Site "Linares"]
[Date "2018.08.19"]
[Round "8"]
[White "Merario Alarcon, Andres"]
[Black "Llobell Cortell, Enrique"]
[Result "0-1"]
[ECO "A50"]
[WhiteElo "2406"]
[BlackElo "2411"]
[Annotator "NA"]
[PlyCount "74"]
[EventDate "2018.08.19"]
[EventType "team-tourn"]
[EventCountry "ESP"]
[SourceTitle "playchess.com"]
[Source "ChessBase"]
[SourceQuality "1"]
[TimeControl "900+5"]

1. d4 {[%emt 0:00:00]} Nf6 {[%emt 0:00:00]} 2. c4 {[%emt 0:00:00]} Nc6 {[%emt 0:00:00]} 3. Nf3 {[%emt 0:00:08]} e6 {[%emt 0:00:00]} 4. e3 {[%emt 0:00:28]} Bb4+ {[%emt 0:00:00]} 5. Nbd2 {[%emt 0:00:05]} O-O {[%emt 0:00:28]} 6. Bd3 {[%emt 0:00:06]} d6 {[%emt 0:00:09]} 7. O-O {[%emt 0:00:05]} e5 {[%emt 0:00:15]} 8. d5 {[%emt 0:01:31]} Ne7 {[%emt 0:00:08]} 9. Qc2 {[%emt 0:00:13]} a5 {[%emt 0:00:19]} 10. b3 {[%emt 0:01:19]} a4 {[%emt 0:00:13]} 11. Bb2 {[%emt 0:00:30]} axb3 {[%emt 0:00:06]} 12. axb3 {[%emt 0:00:05]} Bd7 {[%emt 0:00:51]} 13. Rxa8 {[%emt 0:00:12]} Qxa8 {[%emt 0:00:01]} 14. Nh4 {[%emt 0:00:30]} Ng6 {[%emt 0:01:00]} 15. Nf5 {[%emt 0:01:00]} Re8 {[%emt 0:00:12]} 16. Ne4 {[%emt 0:01:05]} Nxe4 {[%emt 0:00:40]} 17. Bxe4 {[%emt 0:00:02]} Qd8 {[%emt 0:01:58]} 18. g3 {[%emt 0:00:19]} Qc8 {[%emt 0:03:48]} 19. f4 {[%emt 0:00:36]} Bc5 {[%emt 0:00:33]} 20. Kh1 {[%emt 0:00:21]} Qd8 {[%emt 0:02:18]} 21. Qd3 {[%emt 0:01:27]} b5 {[%emt 0:01:34]} 22. g4 {[%emt 0:00:41]} f6 {[%emt 0:01:45]} 23. h4 {[%emt 0:00:37]} bxc4 {[%emt 0:00:24]} 24. bxc4 {[%emt 0:00:02]} exf4 {[%emt 0:00:07]} 25. exf4 {[%emt 0:02:35]} Bxf5 {[%emt 0:00:01]} 26. Bxf5 {[%emt 0:00:02]} Re3 {[%emt 0:00:04]} 27. Qc2 {[%emt 0:00:51]} Nxh4 {[%emt 0:00:14]} 28. Bxh7+ Kh8 29. Qh2 {[%emt 0:01:10]} Kxh7 {[%emt 0:00:01]} 30. Qxh4+ {[%emt 0:00:01]} Kg8 {[%emt 0:00:01]} 31. g5 {[%emt 0:00:01]} Qe7 {[%emt 0:00:05]} 32. f5 {[%emt 0:00:50]} fxg5 {[%emt 0:00:01]} 33. Qg4 {[%emt 0:00:33]} Qe4+ {[%emt 0:00:15]} 34. Qxe4 {[%emt 0:00:02]} Rxe4 {[%emt 0:00:01]} 35. f6 {[%emt 0:00:06]} gxf6 {[%emt 0:00:04]} 36. Rxf6 {[%emt 0:00:02]} Re1+ {[%emt 0:00:10]} 37. Kg2 {[%emt 0:00:02]} Re2+ {[%emt 0:00:01]} 0-1

[Event "ESP-ch Rapid 2018"]
[Site "Linares"]
[Date "2018.08.19"]
[Round "8"]
[White "Fernandez Garcia, Jose Miguel"]
[Black "Rodriguez Martin, Emilio"]
[Result "1-0"]
[ECO "B10"]
[WhiteElo "2404"]
[BlackElo "2159"]
[Annotator "NA"]
[PlyCount "55"]
[EventDate "2018.08.19"]
[EventType "team-tourn"]
[EventCountry "ESP"]
[SourceTitle "playchess.com"]
[Source "ChessBase"]
[SourceQuality "1"]
[TimeControl "900+5"]

1. e4 {[%emt 0:00:00]} c6 {[%emt 0:00:00]} 2. c4 {[%emt 0:00:00]} d5 {[%emt 0:00:00]} 3. exd5 {[%emt 0:00:01]} cxd5 {[%emt 0:00:02]} 4. cxd5 {[%emt 0:00:01]} Qxd5 {[%emt 0:00:21]} 5. Nc3 {[%emt 0:00:02]} Qd6 {[%emt 0:00:02]} 6. d4 {[%emt 0:00:04]} e6 {[%emt 0:00:02]} 7. Nf3 {[%emt 0:00:08]} Nf6 8. Bd3 {[%emt 0:00:15]} Be7 {[%emt 0:00:19]} 9. O-O {[%emt 0:00:01]} O-O {[%emt 0:00:13]} 10. Be3 {[%emt 0:00:28]} Nc6 {[%emt 0:00:36]} 11. a3 {[%emt 0:00:02]} a6 {[%emt 0:00:27]} 12. Rc1 {[%emt 0:00:02]} Bd7 {[%emt 0:00:49]} 13. Bb1 {[%emt 0:00:14]} Rfd8 {[%emt 0:00:37]} 14. Qd3 {[%emt 0:00:09]} Rac8 {[%emt 0:01:03]} 15. Rfd1 {[%emt 0:01:09]} Be8 {[%emt 0:00:13]} 16. h3 {[%emt 0:00:41]} g6 {[%emt 0:00:22]} 17. Qe2 {[%emt 0:00:53]} Na5 {[%emt 0:01:59]} 18. Ba2 {[%emt 0:00:27]} Bc6 {[%emt 0:02:05]} 19. Ne5 {[%emt 0:00:12]} Bd5 {[%emt 0:00:01]} 20. Nxd5 {[%emt 0:01:03]} Nxd5 {[%emt 0:00:30]} 21. Qf3 {[%emt 0:00:32]} f5 {[%emt 0:00:47]} 22. Nd3 {[%emt 0:01:25]} b6 {[%emt 0:01:24]} 23. Nf4 {[%emt 0:00:53]} Rxc1 {[%emt 0:00:14]} 24. Rxc1 {[%emt 0:00:02]} Nxf4 {[%emt 0:01:47]} 25. Bxf4 {[%emt 0:00:04]} Qxd4 {[%emt 0:00:26]} 26. Bxe6+ {[%emt 0:00:14]} Kg7 {[%emt 0:00:09]} 27. b4 {[%emt 0:00:20]} Bd6 {[%emt 0:01:28]} 28. Rd1 {[%emt 0:01:36]} 1-0

[Event "ESP-ch Rapid 2018"]
[Site "Linares"]
[Date "2018.08.19"]
[Round "8"]
[White "Pallardo Lozoya, Jose Vicente"]
[Black "Martin Rueda, Daniel"]
[Result "1-0"]
[ECO "B24"]
[WhiteElo "2382"]
[BlackElo "2267"]
[Annotator "NA"]
[PlyCount "103"]
[EventDate "2018.08.19"]
[EventType "team-tourn"]
[EventCountry "ESP"]
[SourceTitle "playchess.com"]
[Source "ChessBase"]
[SourceQuality "1"]
[TimeControl "900+5"]

1. e4 {[%emt 0:00:00]} c5 {[%emt 0:00:00]} 2. Nc3 {[%emt 0:00:01]} Nc6 {[%emt 0:00:00]} 3. g3 {[%emt 0:00:02]} g6 {[%emt 0:00:03]} 4. Bg2 {[%emt 0:00:01]} Bg7 {[%emt 0:00:02]} 5. d3 {[%emt 0:00:04]} e6 {[%emt 0:00:19]} 6. Be3 {[%emt 0:00:47]} d6 {[%emt 0:00:07]} 7. Qd2 {[%emt 0:00:21]} Rb8 {[%emt 0:00:04]} 8. Nge2 {[%emt 0:01:02]} Nd4 {[%emt 0:00:02]} 9. Bxd4 {[%emt 0:01:12]} cxd4 {[%emt 0:00:03]} 10. Nb5 {[%emt 0:00:01]} Qb6 {[%emt 0:00:25]} 11. Qb4 {[%emt 0:00:26]} Ke7 {[%emt 0:02:30]} 12. Qb3 {[%emt 0:08:17]} Bd7 {[%emt 0:03:54]} 13. Na3 {[%emt 0:00:02]} Qxb3 {[%emt 0:02:05]} 14. axb3 {[%emt 0:00:01]} b5 {[%emt 0:00:49]} 15. Nb1 {[%emt 0:00:07]} Rb7 {[%emt 0:00:15]} 16. Nd2 {[%emt 0:00:46]} Nh6 {[%emt 0:00:25]} 17. Nf3 {[%emt 0:01:21]} e5 {[%emt 0:00:10]} 18. c3 {[%emt 0:00:28]} dxc3 {[%emt 0:00:48]} 19. Nxc3 {[%emt 0:00:03]} Be6 {[%emt 0:00:01]} 20. b4 {[%emt 0:00:03]} Ra8 {[%emt 0:02:26]} 21. Ra5 {[%emt 0:00:12]} Bd7 {[%emt 0:00:11]} 22. Ke2 {[%emt 0:00:17]} Ng8 {[%emt 0:00:18]} 23. Rha1 {[%emt 0:00:33]} Nf6 {[%emt 0:00:14]} 24. Nd2 {[%emt 0:00:08]} Bc6 {[%emt 0:00:23]} 25. Ra6 {[%emt 0:00:04]} Bd7 {[%emt 0:01:14]} 26. Nf1 {[%emt 0:00:01]} Ne8 {[%emt 0:00:07]} 27. Nd5+ {[%emt 0:00:04]} Kd8 {[%emt 0:00:04]} 28. Nfe3 {[%emt 0:00:02]} Be6 {[%emt 0:00:04]} 29. Bf3 {[%emt 0:00:19]} Bh6 {[%emt 0:00:02]} 30. Nc3 {[%emt 0:00:09]} Bxe3 {[%emt 0:00:02]} 31. Kxe3 {[%emt 0:00:10]} Nc7 {[%emt 0:00:02]} 32. R6a3 {[%emt 0:00:24]} Ke7 {[%emt 0:00:11]} 33. d4 {[%emt 0:00:00]} exd4+ {[%emt 0:00:02]} 34. Kxd4 {[%emt 0:00:01]} Bc4 {[%emt 0:00:01]} 35. Bg4 {[%emt 0:00:11]} a6 {[%emt 0:00:06]} 36. Nd5+ {[%emt 0:00:03]} Bxd5 {[%emt 0:00:12]} 37. exd5 {[%emt 0:00:02]} Kf6 {[%emt 0:00:04]} 38. Bd7 {[%emt 0:00:03]} Rd8 {[%emt 0:00:04]} 39. Bc6 {[%emt 0:00:02]} Rb6 {[%emt 0:00:02]} 40. Rf3+ {[%emt 0:00:04]} Kg7 {[%emt 0:00:01]} 41. Re1 {[%emt 0:00:01]} Kf8 {[%emt 0:00:06]} 42. g4 {[%emt 0:00:04]} h6 {[%emt 0:00:02]} 43. h4 {[%emt 0:00:01]} Rbb8 {[%emt 0:00:04]} 44. Rf6 {[%emt 0:00:03]} Kg7 {[%emt 0:00:03]} 45. g5 {[%emt 0:00:00]} hxg5 {[%emt 0:00:02]} 46. hxg5 {[%emt 0:00:02]} Ne8 {[%emt 0:00:30]} 47. Rf4 {[%emt 0:00:22]} Kf8 {[%emt 0:00:04]} 48. Rh1 {[%emt 0:00:01]} Kg7 {[%emt 0:00:06]} 49. Rfh4 {[%emt 0:00:02]} Nc7 {[%emt 0:00:08]} 50. Rh7+ {[%emt 0:00:03]} Kf8 {[%emt 0:00:01]} 51. Re1 {[%emt 0:00:20]} Ne8 {[%emt 0:00:03]} 52. Rh8+ 1-0

[Event "ESP-ch Rapid 2018"]
[Site "Linares"]
[Date "2018.08.19"]
[Round "8"]
[White "Matnadze, Ana"]
[Black "Vega Gutierrez, Sabrina"]
[Result "1-0"]
[ECO "D00"]
[WhiteElo "2378"]
[BlackElo "2390"]
[Annotator "NA"]
[PlyCount "73"]
[EventDate "2018.08.19"]
[EventType "team-tourn"]
[EventCountry "ESP"]
[SourceTitle "playchess.com"]
[Source "ChessBase"]
[SourceQuality "1"]
[TimeControl "900+5"]

1. d4 {[%emt 0:00:00]} d5 {[%emt 0:00:00]} 2. e3 {[%emt 0:00:02]} c6 {[%emt 0:00:21]} 3. f4 {[%emt 0:00:03]} Nf6 {[%emt 0:00:14]} 4. Nf3 {[%emt 0:00:02]} g6 {[%emt 0:00:02]} 5. Bd3 {[%emt 0:00:05]} Bg7 {[%emt 0:00:02]} 6. O-O {[%emt 0:00:03]} O-O {[%emt 0:00:04]} 7. b3 {[%emt 0:00:03]} Ne4 {[%emt 0:01:15]} 8. Bb2 {[%emt 0:00:04]} Bf5 {[%emt 0:00:10]} 9. Nbd2 {[%emt 0:00:11]} Nxd2 {[%emt 0:00:42]} 10. Qxd2 {[%emt 0:00:06]} Bxd3 {[%emt 0:00:03]} 11. Qxd3 {[%emt 0:00:22]} c5 {[%emt 0:01:24]} 12. Rad1 {[%emt 0:00:48]} Nc6 {[%emt 0:00:08]} 13. c3 {[%emt 0:00:05]} cxd4 {[%emt 0:00:27]} 14. exd4 {[%emt 0:00:02]} e6 {[%emt 0:00:16]} 15. Ne5 {[%emt 0:00:46]} Qa5 {[%emt 0:02:37]} 16. a4 {[%emt 0:00:29]} Nxe5 {[%emt 0:00:14]} 17. fxe5 {[%emt 0:00:02]} Qb6 {[%emt 0:00:09]} 18. Ba3 {[%emt 0:02:01]} Rfc8 {[%emt 0:00:16]} 19. Qf3 {[%emt 0:00:21]} Rc7 {[%emt 0:00:57]} 20. Bd6 {[%emt 0:00:19]} Rd7 {[%emt 0:00:19]} 21. c4 {[%emt 0:00:25]} dxc4 {[%emt 0:03:20]} 22. bxc4 {[%emt 0:00:04]} Rc8 {[%emt 0:00:07]} 23. c5 {[%emt 0:01:10]} Qc6 {[%emt 0:00:03]} 24. Qb3 {[%emt 0:00:53]} Bf8 {[%emt 0:00:15]} 25. Rfe1 {[%emt 0:00:59]} b6 {[%emt 0:00:51]} 26. Rc1 {[%emt 0:00:31]} Rb7 {[%emt 0:02:14]} 27. Rb1 {[%emt 0:00:52]} Bxd6 {[%emt 0:00:36]} 28. exd6 {[%emt 0:00:48]} Rcb8 {[%emt 0:00:01]} 29. Qf3 {[%emt 0:01:30]} Qxf3 {[%emt 0:00:12]} 30. gxf3 {[%emt 0:00:02]} Rc8 {[%emt 0:00:03]} 31. a5 {[%emt 0:00:27]} b5 {[%emt 0:00:05]} 32. a6 {[%emt 0:00:38]} Rbb8 {[%emt 0:00:01]} 33. Rec1 {[%emt 0:00:12]} Rc6 {[%emt 0:00:02]} 34. Kf2 {[%emt 0:00:35]} Rbc8 {[%emt 0:00:06]} 35. Ke3 {[%emt 0:00:13]} Rxa6 {[%emt 0:00:09]} 36. d7 {[%emt 0:00:05]} Rd8 {[%emt 0:00:09]} 37. c6 {[%emt 0:00:01]} 1-0

[Event "ESP-ch Rapid 2018"]
[Site "Linares"]
[Date "2018.08.19"]
[Round "8"]
[White "Garcia Cuenca, Victor"]
[Black "Riquelme Valero, Manuel Damian"]
[Result "1-0"]
[ECO "A88"]
[WhiteElo "2351"]
[BlackElo "2150"]
[Annotator "NA"]
[PlyCount "104"]
[EventDate "2018.08.19"]
[EventType "team-tourn"]
[EventCountry "ESP"]
[SourceTitle "playchess.com"]
[Source "ChessBase"]
[SourceQuality "1"]
[TimeControl "900+5"]

1. d4 {[%emt 0:00:00]} f5 {[%emt 0:00:00]} 2. g3 {[%emt 0:00:00]} Nf6 {[%emt 0:00:01]} 3. Bg2 {[%emt 0:00:00]} g6 {[%emt 0:00:01]} 4. c4 {[%emt 0:00:04]} Bg7 {[%emt 0:00:01]} 5. Nf3 {[%emt 0:00:11]} d6 {[%emt 0:00:02]} 6. O-O {[%emt 0:00:04]} O-O {[%emt 0:00:01]} 7. Nc3 {[%emt 0:00:11]} c6 {[%emt 0:00:02]} 8. b3 {[%emt 0:00:03]} Qc7 {[%emt 0:00:20]} 9. Ba3 {[%emt 0:00:45]} Na6 {[%emt 0:00:16]} 10. Qc2 {[%emt 0:00:12]} b5 {[%emt 0:00:43]} 11. Bb2 {[%emt 0:00:44]} Rb8 {[%emt 0:00:48]} 12. Nd2 {[%emt 0:01:33]} e5 {[%emt 0:00:44]} 13. dxe5 {[%emt 0:00:55]} dxe5 {[%emt 0:00:04]} 14. e4 {[%emt 0:00:23]} Nb4 {[%emt 0:00:39]} 15. Qb1 {[%emt 0:00:20]} Rd8 {[%emt 0:00:15]} 16. a3 {[%emt 0:02:43]} Nd3 {[%emt 0:00:45]} 17. b4 {[%emt 0:01:09]} bxc4 {[%emt 0:01:09]} 18. Nxc4 {[%emt 0:01:05]} Be6 {[%emt 0:00:02]} 19. Na5 {[%emt 0:00:38]} Nxb2 {[%emt 0:00:07]} 20. Qxb2 {[%emt 0:00:01]} Qxa5 {[%emt 0:00:01]} 21. exf5 {[%emt 0:00:11]} gxf5 {[%emt 0:00:21]} 22. Qe2 {[%emt 0:00:29]} Qc7 {[%emt 0:00:51]} 23. Rac1 {[%emt 0:00:01]} e4 {[%emt 0:01:46]} 24. f3 {[%emt 0:00:04]} Qb6+ {[%emt 0:00:47]} 25. Kh1 {[%emt 0:00:02]} Bd5 {[%emt 0:00:01]} 26. fxe4 {[%emt 0:00:24]} fxe4 {[%emt 0:00:38]} 27. Nxe4 {[%emt 0:00:15]} Nxe4 {[%emt 0:01:14]} 28. Bxe4 {[%emt 0:00:01]} Qd4 {[%emt 0:00:06]} 29. Bxd5+ {[%emt 0:00:41]} cxd5 {[%emt 0:00:53]} 30. Rf4 {[%emt 0:00:54]} Qe5 {[%emt 0:00:16]} 31. Qg4 {[%emt 0:00:08]} Kh8 {[%emt 0:00:17]} 32. Rcf1 {[%emt 0:00:41]} Rf8 {[%emt 0:00:21]} 33. Kg2 {[%emt 0:00:30]} Rxf4 {[%emt 0:00:17]} 34. Rxf4 {[%emt 0:00:01]} Rf8 {[%emt 0:00:11]} 35. Rxf8+ {[%emt 0:00:08]} Bxf8 {[%emt 0:00:02]} 36. Qc8 {[%emt 0:00:05]} Qd6 {[%emt 0:00:35]} 37. Kf3 {[%emt 0:00:17]} d4 {[%emt 0:00:28]} 38. Ke2 {[%emt 0:00:01]} Qe5+ {[%emt 0:00:11]} 39. Kd1 {[%emt 0:00:10]} Kg7 {[%emt 0:00:28]} 40. Qd7+ {[%emt 0:00:12]} Kg6 {[%emt 0:00:18]} 41. Qxa7 {[%emt 0:00:20]} Qe3 {[%emt 0:00:14]} 42. Qb6+ {[%emt 0:00:13]} Kf5 {[%emt 0:00:07]} 43. Qb5+ {[%emt 0:00:17]} Ke4 {[%emt 0:00:17]} 44. Qc6+ {[%emt 0:00:07]} Kf5 {[%emt 0:00:14]} 45. Qc8+ {[%emt 0:00:01]} Ke4 {[%emt 0:00:20]} 46. Qxf8 {[%emt 0:00:28]} Kd3 47. Qf5+ Kc4 {[%emt 0:00:45]} 48. Qc2+ {[%emt 0:00:43]} Kd5 {[%emt 0:00:06]} 49. Qc5+ {[%emt 0:00:01]} Ke4 {[%emt 0:00:01]} 50. Qe7+ {[%emt 0:00:04]} Kf3 {[%emt 0:00:23]} 51. Qxe3+ {[%emt 0:00:02]} dxe3 {[%emt 0:00:02]} 52. Ke1 {[%emt 0:00:01]} Kg2 {[%emt 0:00:02]} 1-0